bitfinex/quotes_ETHUSD_20250929
["timestamp","ask_amount","ask_price","bid_price","bid_amount"]
[1759138408548,3.0,4141.2,4140.7,2.87414541]
[1759138408846,3.0,4141.2,4140.7,0.4591]
[1759138409856,3.0,4141.2,4140.7,2.87413563]
[1759138410454,3.0,4141.2,4140.8,2.41498214]
[1759138410823,3.0,4141.2,4140.7,3.10693211]
[1759138411354,3.6654,4141.2,4140.4,0.8119]
[1759138411555,2.41486397,4141.1,4140.4,1.20179]
[1759138411756,2.41486397,4141.1,4140.4,3.61697094]
[1759138411951,6.08017211,4141.2,4140.5,2.41515979]
[1759138412153,3.6654,4141.2,4140.5,2.41512469]
[1759138412651,6.07937085,4141.2,4140.5,2.41512469]
[1759138412829,2.41482591,4141.1,4140.5,0.67039147]
[1759138413226,3.6646,4141.2,4140.5,0.67039147]
[1759138413431,3.6646,4141.2,4140.6,2.41510634]
[1759138413634,2.9992,4141.2,4140.5,0.67039147]
[1759138413834,2.9992,4141.2,4140.7,2.41505059]
[1759138414032,2.9992,4141.2,4140.7,2.64785059]
[1759138414233,2.9992,4141.2,4140.7,0.6919]
[1759138414437,3.0,4141.2,4140.7,0.6919]
[1759138415058,3.0,4141.2,4140.7,3.10694593]
[1759138415255,3.001,4141.2,4140.7,2.87414593]
[1759138415559,3.001,4141.2,4140.7,0.4591]
[1759138416659,5.41576735,4141.2,4140.7,0.4591]
[1759138416861,6.08116819,4141.2,4140.5,0.67039147]
[1759138417162,3.6664,4141.2,4140.6,2.41505809]
[1759138418164,3.6664,4141.2,4140.5,3.08554039]
[1759138418352,3.2311,4141.2,4140.7,2.41500287]
[1759138418657,3.001,4141.2,4140.7,2.41500287]
[1759138418839,0.001,4141.2,4140.7,2.87410287]
[1759138419039,3.001,4141.2,4140.7,0.4591]
[1759138419244,3.2458,4141.2,4140.6,2.41508787]
[1759138419457,3.2458,4141.2,4140.7,2.41504215]
[1759138419981,3.2458,4141.2,4140.6,2.4150948]
[1759138420736,5.66055914,4141.2,4140.6,2.4150948]
[1759138420968,3.2458,4141.2,4140.6,2.4150948]
[1759138422066,3.2458,4141.2,4140.7,2.41504168]
[1759138422487,3.2458,4141.2,4140.6,2.41508674]
[1759138422968,5.66056434,4141.2,4140.6,2.41508674]
[1759138424068,3.2458,4141.2,4140.5,0.67039147]
[1759138424478,0.6977,4141.1,4140.5,2.41516725]
[1759138424675,0.4529,4141.1,4140.5,2.41516725]
[1759138424975,0.2448,4141.0,4140.5,2.41516725]
[1759138425166,0.2448,4141.0,4140.6,2.41510402]
[1759138425362,3.4539,4141.2,4140.7,2.41503644]
[1759138425568,3.6987,4141.2,4140.7,2.41503644]
[1759138426170,3.6987,4141.2,4140.6,2.87018567]
[1759138426592,3.6987,4141.2,4140.7,2.41502858]
[1759138427105,0.001,4141.2,4140.4,0.12]
[1759138427403,0.001,4141.2,4140.9,2.41487797]
[1759138427602,0.001,4141.2,4141.0,0.02414875]
[1759138427771,0.001,4141.2,4141.0,0.71714875]
[1759138428301,0.001,4141.2,4140.8,2.41498683]
[1759138428467,0.001,4141.2,4140.8,3.10798683]
[1759138428989,0.001,4141.2,4140.7,0.12]
[1759138429298,0.6977,4141.1,4140.7,0.12]
[1759138429499,0.6977,4141.1,4140.7,2.53504197]
[1759138429703,0.6977,4141.0,4140.4,3.07]
[1759138429899,0.6977,4141.0,4140.4,3.19]
[1759138430082,0.6977,4141.0,4140.5,2.41512593]
[1759138430469,0.2448,4140.9,4140.5,2.41512593]
[1759138431902,0.2448,4140.9,4140.4,3.19]
[1759138431903,0.6977,4140.8,4140.4,3.07]
[1759138432199,0.6977,4140.8,4140.4,5.48522492]
[1759138432414,0.6977,4140.8,4140.4,3.07]
[1759138432576,0.2448,4140.7,4140.2,0.12]
[1759138432775,0.2448,4140.6,4140.2,0.12]
[1759138432975,0.2448,4140.6,4140.3,0.002]
[1759138433500,0.4529,4140.7,4140.3,0.002]
[1759138433704,3.2448,4140.9,4140.3,3.11027958]
[1759138434087,2.65974815,4140.9,4140.3,3.11027958]
[1759138434407,0.2448,4140.9,4140.3,0.695]
[1759138434702,2.65975144,4140.9,4140.3,3.11028173]
[1759138434903,0.2448,4140.9,4140.3,0.695]
[1759138435107,3.0,4141.0,4140.4,0.02415225]
[1759138435275,0.2448,4140.9,4140.4,0.02415225]
[1759138435784,0.6977,4140.9,4140.4,0.02415225]
[1759138436192,3.11263475,4140.9,4140.4,0.02415225]
[1759138436807,3.11263475,4140.9,4140.3,0.02615283]
[1759138436993,3.11263475,4140.9,4140.3,2.44143189]
[1759138437398,3.11183475,4140.9,4140.3,2.44143189]
[1759138437597,3.001,4141.2,4140.5,2.41514267]
[1759138437895,0.001,4141.2,4140.6,3.10807008]
[1759138438077,3.001,4141.2,4140.7,0.0241505]
[1759138438274,3.001,4141.2,4140.7,0.7171505]
[1759138438900,5.41576209,4141.2,4140.7,0.7171505]
[1759138439300,2.41576209,4141.2,4140.7,0.7171505]
[1759138440399,6.7627,4141.4,4140.7,0.7171505]
[1759138440919,9.17734302,4141.4,4140.7,0.7171505]
[1759138441124,2.41473812,4141.3,4140.7,0.7171505]
[1759138441723,2.41477097,4141.2,4140.7,0.7171505]
[1759138441921,2.41477097,4141.2,4140.8,14.5]
[1759138442218,2.65958411,4141.2,4140.9,0.02414933]
[1759138442393,3.11251731,4141.1,4140.4,2.5351745]
[1759138442590,3.11251731,4141.1,4140.5,2.41516603]
[1759138442793,3.11251731,4141.1,4140.4,1.62942039]
[1759138442794,0.4529,4141.1,4140.6,14.5]
[1759138442992,2.41504826,4140.8,4140.6,14.5]
[1759138443215,0.6977,4140.7,4140.6,14.5]
[1759138444126,3.11275059,4140.7,4140.6,14.5]
[1759138445795,0.6977,4140.7,4140.6,14.5]
[1759138446398,0.6977,4140.7,4140.3,0.002]
[1759138446597,0.2448,4140.6,4140.3,0.002]
[1759138447318,2.65991301,4140.6,4140.3,0.002]
[1759138447627,0.4529,4140.7,4140.3,0.002]
[1759138447628,0.6977,4140.5,4140.3,0.002]
[1759138447824,3.11288018,4140.5,4140.3,0.002]
[1759138448014,0.2448,4140.4,4140.3,0.002]
[1759138449834,3.10852558,4140.4,4140.3,0.002]
[1759138450732,0.6933,4140.4,4140.3,0.002]
[1759138455133,5.47793745,4140.9,4140.3,0.002]
[1759138455134,0.001,4141.2,4140.3,0.02615283]
[1759138455321,3.0,4141.0,4140.4,0.12]
[1759138455518,3.0,4141.0,4140.5,5.62831188]
[1759138455719,3.0,4141.0,4140.6,0.695]
[1759138455933,3.0,4141.0,4140.7,0.695]
[1759138456134,3.0,4141.0,4140.5,2.41514963]
[1759138456307,0.001,4141.2,4140.6,0.695]
[1759138456508,3.001,4141.2,4140.5,3.058]
[1759138456735,3.001,4141.2,4140.7,0.695]
[1759138456934,3.001,4141.2,4140.8,0.695]
[1759138457131,0.001,4141.2,4140.9,0.71914933]
[1759138457703,2.41483293,4141.1,4140.6,0.695]
[1759138458113,2.65418015,4141.2,4140.7,0.2453]
[1759138458320,2.65418015,4141.2,4140.7,0.695]
[1759138458537,2.65417041,4141.2,4140.7,0.695]
[1759138459408,2.41481918,4141.1,4140.5,7.99128479]
[1759138459609,2.41481918,4141.1,4140.5,8.23658479]
[1759138460017,2.4147618,4141.2,4140.5,8.23658479]
[1759138460221,2.41482917,4141.1,4140.5,8.23658479]
[1759138460639,2.41482917,4141.1,4140.5,5.82146225]
[1759138461138,2.41482917,4141.1,4140.5,8.23661497]
[1759138462242,2.41402917,4141.1,4140.5,8.23661497]
[1759138462442,2.41402917,4141.1,4140.5,5.57616225]
[1759138462638,5.47271756,4141.3,4140.5,3.058]
[1759138462639,2.41487823,4141.0,4140.5,3.058]
[1759138462816,2.41479229,4141.2,4140.6,0.2453]
[1759138463018,0.6725,4141.2,4140.5,3.058]
[1759138463242,2.41498132,4140.9,4140.3,3.3023]
[1759138463431,2.65339253,4140.8,4140.3,3.057]
[1759138463743,0.2384,4140.7,4140.3,3.057]
[1759138464118,0.4341,4140.8,4140.3,3.057]
[1759138464315,0.6725,4140.8,4140.3,3.752]
[1759138465133,0.6725,4140.7,4140.3,0.002]
[1759138465412,2.41471391,4141.3,4140.3,2.441387]
[1759138465413,3.054,4140.8,4140.3,2.441387]
[1759138465628,3.054,4140.8,4140.4,0.695]
[1759138465816,3.054,4140.8,4140.4,0.2453]
[1759138466416,5.70740814,4140.8,4140.4,0.2453]
[1759138466625,3.2924,4140.8,4140.4,0.2453]
[1759138467135,3.2924,4140.8,4140.3,0.02615283]
[1759138467337,3.2924,4140.8,4140.3,0.27145283]
[1759138467562,5.70739254,4140.8,4140.3,0.27145283]
[1759138468016,6.14149436,4140.8,4140.3,0.27145283]
[1759138468320,2.41510892,4140.6,4140.3,0.002]
[1759138468528,2.41522558,4140.4,4140.3,0.002]
[1759138469250,3.08772558,4140.4,4140.3,0.002]
[1759138472345,3.054,4140.5,4140.3,0.002]
[1759138472547,5.46918282,4140.5,4140.3,0.002]
[1759138473550,2.41522558,4140.4,4140.3,0.002]
[1759138474253,5.46722558,4140.4,4140.3,0.002]
[1759138474552,6.13972558,4140.4,4140.3,0.002]
[1759138475452,0.4341,4141.2,4140.3,5.2124611]
[1759138475651,5.41582391,4141.1,4140.4,0.26945225]
[1759138475853,3.0,4140.9,4140.4,0.26945225]
[1759138476023,5.41493451,4140.9,4140.4,0.26945225]
[1759138476224,3.0,4140.9,4140.5,0.2453]
[1759138476446,5.41497187,4140.9,4140.5,0.2453]
[1759138476641,5.41488938,4141.0,4140.5,0.2453]
[1759138476848,3.051,4140.9,4140.6,0.695]
[1759138477029,5.46593881,4140.9,4140.6,0.2453]
[1759138477858,3.051,4140.9,4140.4,0.26945225]
[1759138478063,3.051,4140.9,4140.5,0.2453]
[1759138478262,3.051,4140.9,4140.5,14.7453]
[1759138479371,5.4659458,4140.9,4140.5,14.7453]
[1759138480080,2.65104582,4140.8,4140.5,14.5]
[1759138480378,2.41510892,4140.6,4140.5,14.5]
[1759138480554,2.41522558,4140.4,4140.3,0.002]
[1759138480729,3.05,4140.9,4140.3,0.002]
[1759138480931,3.05,4140.9,4140.3,0.7132]
[1759138480932,5.41503115,4140.8,4140.3,0.7132]
[1759138481128,3.0,4141.0,4140.4,0.7112]
[1759138481336,5.41502826,4140.8,4140.4,0.7112]
[1759138481785,0.4441,4141.1,4140.7,4.7607611]
[1759138481786,0.001,4141.1,4140.7,4.7607611]
[1759138481937,0.001,4141.1,4141.0,4.7607611]
[1759138482357,0.001,4141.1,4141.0,19.9719611]
[1759138482777,0.001,4141.1,4141.0,15.2112]
[1759138484829,0.001,4141.1,4141.0,14.5]
[1759138487134,0.0002,4141.1,4141.0,14.5]
[1759138487341,0.0002,4141.1,4141.0,14.7382]
[1759138487663,0.0002,4141.1,4141.0,14.5]
[1759138489061,2.41471663,4141.3,4141.1,4.9998]
[1759138489364,2.650759,4141.2,4141.1,4.9998]
[1759138489564,3.60040342,4141.2,4141.1,4.9998]
[1759138489734,0.001,4141.6,4141.1,4.9998]
[1759138489936,2.41469937,4141.4,4141.1,5.238]
[1759138490143,2.41475143,4141.3,4141.2,0.2382]
[1759138490342,2.41464488,4141.4,4141.1,4.9998]
[1759138490548,2.65064488,4141.4,4141.1,4.9998]
[1759138490850,2.41470069,4141.3,4141.1,4.9998]
[1759138491050,0.236,4141.4,4141.1,4.9998]
[1759138491255,2.41475419,4141.3,4141.1,4.9998]
[1759138491457,0.001,4141.6,4141.1,4.9998]
[1759138491658,0.001,4141.6,4141.2,0.2382]
[1759138491659,3.049,4141.5,4141.2,0.2382]
[1759138491864,3.049,4141.5,4141.3,0.2382]
[1759138492451,5.46357253,4141.6,4141.3,0.2382]
[1759138493380,2.41459546,4141.5,4141.3,0.2382]
[1759138493578,2.41459546,4141.5,4141.2,0.473]
[1759138493783,3.049,4141.6,4141.3,14.5]
[1759138493985,3.285,4141.6,4141.3,14.5]
[1759138494188,2.41458408,4141.5,4141.3,14.5]
[1759138494483,2.41462184,4141.5,4141.3,14.5]
[1759138494683,2.41463617,4141.5,4141.3,14.5]
[1759138494864,2.41464239,4141.4,4141.3,14.5]
[1759138495063,2.65064239,4141.4,4141.3,14.5]
[1759138495584,0.001,4141.6,4141.3,14.5]
[1759138495785,0.001,4141.6,4141.4,7.99012335]
[1759138495961,0.001,4141.6,4141.5,2.43872992]
[1759138496164,0.001,4141.6,4141.5,3.14992992]
[1759138496366,0.001,4141.6,4141.5,6.19792992]
[1759138496568,0.001,4141.6,4141.5,8.69194633]
[1759138497575,0.001,4141.6,4141.5,23.19194633]
[1759138497789,0.001,4141.6,4141.5,20.77736225]
[1759138498455,0.001,4141.6,4141.5,23.19194633]
[1759138500488,0.001,4141.6,4141.5,23.31194633]
[1759138503064,0.001,4141.6,4141.5,28.07270743]
[1759138503902,0.001,4141.6,4141.5,28.07070743]
[1759138507435,0.001,4141.6,4141.5,25.65612335]
[1759138507631,0.237,4141.6,4141.5,14.5]
[1759138507792,0.6801,4141.6,4141.5,14.5]
[1759138508187,0.237,4141.6,4141.5,14.5]
[1759138508402,0.001,4141.6,4141.5,14.5]
[1759138509130,0.248,4141.6,4141.5,14.5]
[1759138512092,0.7209,4141.6,4141.5,17.545]
[1759138512295,0.7201,4141.6,4141.5,17.545]
[1759138512494,3.13462578,4141.6,4141.5,17.545]
[1759138512730,3.13462578,4141.6,4141.5,14.5]
[1759138512926,4.27510552,4141.6,4141.1,5.0018]
[1759138513156,8.4266611,4141.5,4141.1,5.0018]
[1759138513333,2.414759,4141.2,4141.1,5.0018]
[1759138513534,3.080659,4141.2,4141.1,5.0018]
[1759138517756,6.080659,4141.2,4141.1,5.0018]
[1759138517946,8.01076525,4141.2,4141.1,5.0018]
[1759138519927,8.01076525,4141.2,4141.1,6.0018]
[1759138520980,13.56352635,4141.2,4141.1,6.0018]
[1759138521508,14.29006549,4141.2,4141.1,6.0018]
[1759138522608,2.41505059,4140.7,4140.6,0.002]
[1759138522812,8.46005059,4140.7,4140.6,0.002]
[1759138523108,9.12595059,4140.7,4140.6,0.002]
[1759138525199,9.91795059,4140.7,4140.6,0.002]
[1759138528215,10.01483468,4140.7,4140.6,0.002]
[1759138528520,10.5698402,4140.7,4140.6,0.002]
[1759138533347,7.5248402,4140.7,4140.6,0.002]
[1759138533508,10.5708402,4140.7,4140.6,0.002]
[1759138536044,12.0248402,4140.7,4140.6,0.002]
[1759138537347,12.0240402,4140.7,4140.6,0.002]
[1759138537860,12.0240402,4140.7,4140.6,0.6951]
[1759138537861,2.41425059,4140.7,4140.6,0.6951]
[1759138538030,5.46025059,4140.7,4140.6,0.6951]
[1759138538226,8.46025059,4140.7,4140.6,0.6951]
[1759138538437,3.0,4140.7,4140.6,0.6951]
[1759138538640,8.46105059,4140.7,4140.6,0.6951]
[1759138538963,8.46105059,4140.7,4140.6,0.002]
[1759138539116,9.5486533,4140.7,4140.6,0.002]
[1759138539321,10.5844533,4140.7,4140.6,0.002]
[1759138539537,11.0172533,4140.7,4140.6,0.002]
[1759138540051,11.11413434,4140.7,4140.6,0.002]
[1759138540249,12.56813434,4140.7,4140.6,0.002]
[1759138541671,11.89153434,4140.7,4140.6,0.002]
[1759138542326,8.84553434,4140.7,4140.6,0.002]
[1759138542524,11.89153434,4140.7,4140.6,0.691]
[1759138542860,11.89153434,4140.7,4140.6,0.002]
[1759138545358,9.64553434,4140.7,4140.6,0.2496]
[1759138545561,9.5486533,4140.7,4140.6,0.2496]
[1759138546261,11.0026533,4140.7,4140.6,0.2496]
[1759138546585,9.5486533,4140.7,4140.6,0.2496]
[1759138548378,9.5486533,4140.7,4140.6,0.002]
[1759138553992,10.2252533,4140.7,4140.6,0.002]
[1759138554393,10.2262533,4140.7,4140.6,0.002]
[1759138556170,10.4758533,4140.7,4140.6,0.002]
[1759138559311,10.4758533,4140.7,4140.2,0.002]
[1759138559312,3.20728391,4140.3,4140.2,0.002]
[1759138559517,14.76329727,4140.3,4140.2,0.002]
[1759138559810,15.43989727,4140.3,4140.2,0.002]
[1759138560102,15.5367891,4140.3,4140.2,0.002]
[1759138561296,10.02577574,4140.3,4140.2,0.002]
[1759138561500,11.46639188,4140.3,4140.2,0.002]
[1759138561699,10.78979188,4140.3,4140.2,0.002]
[1759138561906,11.46639188,4140.3,4140.2,0.002]
[1759138562702,12.92039188,4140.3,4140.2,0.002]
[1759138563275,12.91959188,4140.3,4140.2,0.002]
[1759138568618,6.20734225,4140.2,4140.1,1e-08]
[1759138568787,8.74894496,4140.2,4140.1,1e-08]
[1759138568983,9.41934496,4140.2,4140.1,1e-08]
[1759138569295,9.8951883,4140.2,4140.1,1e-08]
[1759138569676,9.51625229,4140.2,4140.1,1e-08]
[1759138569909,7.66151728,4139.9,4139.8,1e-08]
[1759138570112,11.99560027,4139.9,4139.8,1e-08]
[1759138570407,12.66600027,4139.9,4139.8,1e-08]
[1759138570575,12.76291041,4139.9,4139.8,1e-08]
[1759138572703,13.14186894,4139.9,4139.8,1e-08]
[1759138575510,15.68986894,4139.9,4139.8,1e-08]
[1759138577189,9.42646894,4139.9,4139.8,1e-08]
[1759138577396,12.47146894,4139.9,4139.8,1e-08]
[1759138577594,12.69956894,4139.9,4139.8,1e-08]
[1759138577795,13.17056894,4139.9,4139.8,1e-08]
[1759138579917,12.47146894,4139.9,4139.8,1e-08]
[1759138580116,9.42646894,4139.9,4139.8,1e-08]
[1759138580313,9.42646894,4139.9,4139.8,0.67930001]
[1759138580314,8.63446894,4139.9,4139.8,0.67930001]
[1759138580521,11.67946894,4139.9,4139.8,0.67930001]
[1759138580722,12.47146894,4139.9,4139.8,0.67930001]
[1759138583134,12.09251041,4139.9,4139.8,0.67930001]
[1759138584408,9.04751041,4139.9,4139.8,0.67930001]
[1759138584611,12.09251041,4139.9,4139.8,0.67930001]
[1759138584930,5.51242742,4139.9,4139.8,0.67930001]
[1759138585131,5.46051728,4139.9,4139.8,0.67930001]
[1759138585298,8.46051728,4139.9,4139.8,0.67930001]
[1759138587032,5.41551728,4139.9,4139.8,0.67930001]
[1759138587328,8.45971728,4139.9,4139.8,0.67930001]
[1759138588333,8.46071728,4139.9,4139.8,0.67930001]
[1759138589220,5.41571728,4139.9,4139.8,0.67930001]
[1759138589410,8.46071728,4139.9,4139.8,0.67930001]
[1759138590926,5.41571728,4139.9,4139.8,0.67930001]
[1759138591128,8.46071728,4139.9,4139.8,0.67930001]
[1759138592308,6.046,4139.9,4139.8,0.67930001]
[1759138592512,8.46151728,4139.9,4139.8,0.67930001]
[1759138592929,5.41651728,4139.9,4139.8,0.67930001]
[1759138593130,3.001,4139.9,4139.8,0.67930001]
[1759138593323,3.045,4139.9,4139.8,0.67930001]
[1759138593523,3.045,4139.9,4139.8,0.98919713]
[1759138596053,0.001,4139.9,4139.8,0.98919713]
[1759138597251,0.001,4139.9,4139.8,0.67930001]
[1759138597559,0.001,4139.9,4139.8,15.17930001]
[1759138600646,0.001,4139.9,4139.8,0.67930001]
[1759138601052,0.001,4139.9,4139.8,15.17930001]
[1759138608145,0.001,4139.9,4139.8,14.50000001]
[1759138608345,0.001,4139.9,4139.8,15.19770001]
[1759138610358,0.001,4139.9,4139.8,16.95943746]
[1759138611853,2.41651728,4139.9,4139.8,1e-08]
[1759138612048,9.16481728,4139.9,4139.8,1e-08]
[1759138616488,9.26170888,4139.9,4139.8,1e-08]
[1759138621896,8.79190888,4139.9,4139.8,1e-08]
[1759138622889,9.26170888,4139.9,4139.8,1e-08]
[1759138623094,10.90568396,4139.9,4139.8,1e-08]
[1759138624275,10.19958396,4139.9,4139.8,1e-08]
[1759138624676,10.90568396,4139.9,4139.8,1e-08]
[1759138625396,11.69768396,4139.9,4139.8,1e-08]
[1759138625605,13.15168396,4139.9,4139.8,1e-08]
[1759138629409,17.91430382,4139.9,4139.8,1e-08]
[1759138629991,13.15168396,4139.9,4139.8,1e-08]
[1759138630613,9.63888396,4139.9,4139.8,1e-08]
[1759138630806,8.55460888,4139.9,4139.8,1e-08]
[1759138631313,8.55460888,4139.9,4139.8,0.22990001]
[1759138631808,5.55460888,4139.9,4139.8,0.70340001]
[1759138632186,8.55460888,4139.9,4139.8,0.70340001]
[1759138635889,3.0970916,4139.9,4139.8,0.70850001]
[1759138636488,6.1390916,4139.9,4139.8,0.70850001]
[1759138636829,0.0002,4139.9,4139.8,15.52132336]
[1759138637122,3.0414,4140.0,4139.8,15.52132336]
[1759138637322,0.72656906,4140.2,4139.9,0.7085]
[1759138637543,3.042,4140.1,4140.0,0.7085]
[1759138637745,0.001,4140.4,4140.0,0.7085]
[1759138637746,0.7265409,4140.3,4140.0,0.7085]
[1759138638034,3.043,4140.4,4140.1,4.70017064]
[1759138638326,3.043,4140.4,4140.2,0.7085]
[1759138638528,3.043,4140.4,4140.1,3.99167064]
[1759138638695,0.001,4140.4,4140.3,0.7085]
[1759138638889,0.001,4140.4,4140.3,3.37641537]
[1759138640710,0.001,4140.4,4140.3,17.87641537]
[1759138640923,0.001,4140.4,4140.3,17.85226254]
[1759138644747,0.001,4140.4,4140.3,17.97226254]
[1759138645095,0.001,4140.4,4140.3,21.01326254]
[1759138648846,0.001,4140.4,4140.3,21.80526254]
[1759138649138,0.001,4140.4,4140.3,21.90209338]
[1759138655074,0.001,4140.4,4140.3,21.90009338]
[1759138658058,0.001,4140.7,4140.6,3.20710892]
[1759138658233,0.001,4140.7,4140.6,8.90842225]
[1759138658438,0.001,4140.7,4140.6,7.07460892]
[1759138658761,0.001,4140.7,4140.6,21.67142829]
[1759138659870,0.001,4141.3,4140.6,21.67142829]
[1759138660075,0.001,4141.3,4141.1,2.53481731]
[1759138660371,0.001,4141.3,4141.1,5.59796548]
[1759138660572,0.001,4141.3,4141.1,21.58790292]
[1759138661964,0.0002,4141.2,4141.1,22.37990292]
[1759138662868,0.0002,4141.2,4141.1,22.47671056]
[1759138663287,0.0002,4141.2,4141.1,20.97191056]
[1759138663452,0.6861,4141.2,4141.1,20.75510292]
[1759138665489,0.6861,4141.2,4141.1,20.75410292]
[1759138666892,0.2309,4141.2,4141.1,17.71610292]
[1759138667067,0.6861,4141.2,4141.1,20.75410292]
[1759138667589,0.6861,4141.2,4141.1,19.95281731]
[1759138668290,0.6861,4141.2,4141.1,16.91481731]
[1759138668584,0.6861,4141.2,4141.1,19.95281731]
[1759138668790,0.6861,4141.2,4141.1,16.91481731]
[1759138669300,0.6861,4141.2,4141.1,19.95281731]
[1759138671694,0.6861,4141.2,4141.1,14.5]
[1759138671926,0.6861,4141.2,4141.1,17.538]
[1759138674790,0.6861,4141.2,4141.1,14.5]
[1759138674991,0.99627843,4141.2,4141.1,14.5]
[1759138675321,0.99627843,4141.2,4141.1,14.502]
[1759138675520,0.6861,4141.2,4141.1,14.502]
[1759138680823,0.6861,4141.2,4141.1,16.91681731]
[1759138681027,0.6861,4141.2,4141.1,14.502]
[1759138681723,0.2309,4141.2,4141.1,14.502]
[1759138681927,0.2309,4141.2,4141.1,16.91681731]
[1759138682924,0.0002,4141.2,4141.1,16.91681731]
[1759138683728,0.0002,4141.2,4141.1,14.502]
[1759138683926,0.2309,4141.2,4141.1,14.502]
[1759138684129,0.6861,4141.2,4141.1,14.502]
[1759138684430,0.6861,4141.2,4141.1,16.91681731]
[1759138684728,0.6861,4141.2,4141.1,14.502]
[1759138686309,3.100859,4141.2,4141.1,14.502]
[1759138686525,3.65251087,4141.2,4141.1,14.502]
[1759138686929,1.23695187,4141.2,4141.1,14.502]
[1759138687127,0.2301,4141.2,4141.1,14.502]
[1759138687334,0.6853,4141.2,4141.1,14.502]
[1759138687518,0.2301,4141.2,4141.1,14.502]
[1759138687901,0.001,4141.3,4141.1,14.502]
[1759138688213,0.001,4141.3,4141.2,2.68490659]
[1759138688534,0.001,4141.3,4141.2,3.15170659]
[1759138688731,0.001,4141.3,4141.2,5.46226446]
[1759138688899,0.001,4141.3,4141.2,5.43811687]
[1759138691326,0.001,4141.3,4141.2,3.127559]
[1759138691514,0.001,4141.3,4141.2,17.65170659]
[1759138691811,0.001,4141.3,4141.2,17.627559]
[1759138692017,0.001,4141.3,4141.2,17.146859]
[1759138692199,0.001,4141.3,4141.2,17.577559]
[1759138692401,0.001,4141.3,4141.2,19.88070211]
[1759138693520,0.001,4141.3,4141.2,19.21790211]
[1759138695141,0.001,4141.3,4141.2,19.44610211]
[1759138698127,0.001,4141.3,4141.2,19.21790211]
[1759138700646,0.001,4141.3,4141.2,19.44610211]
[1759138701536,0.001,4141.3,4141.2,19.90540211]
[1759138702049,0.001,4141.3,4141.2,20.02540211]
[1759138703041,0.001,4141.3,4141.2,19.33790211]
[1759138703250,0.001,4141.3,4141.2,19.56610211]
[1759138703958,0.001,4141.3,4141.2,22.60310211]
[1759138707052,0.001,4141.3,4141.2,23.06240211]
[1759138709550,0.001,4141.3,4141.2,22.60310211]
[1759138709746,0.001,4141.3,4141.2,14.5]
[1759138710080,0.6652,4141.3,4141.1,0.002]
[1759138711981,0.6644,4141.3,4141.1,0.002]
[1759138714450,0.6642,4141.2,4141.1,0.002]
[1759138715697,3.7002,4141.2,4141.1,0.002]
[1759138716293,3.0002,4141.3,4141.1,0.002]
[1759138716618,0.6642,4141.2,4141.1,0.002]
[1759138718376,0.6642,4141.2,4141.1,2.41681731]
[1759138718572,0.6642,4141.2,4141.1,0.002]
[1759138720496,0.6642,4141.2,4141.1,2.41681731]
[1759138721008,0.6642,4141.2,4141.1,0.002]
[1759138721904,0.0002,4141.3,4141.1,0.002]
[1759138722275,0.2461,4141.3,4141.1,0.002]
[1759138722475,0.0002,4141.3,4141.1,0.002]
[1759138722814,0.6958,4141.2,4141.1,0.002]
[1759138727688,0.0002,4141.3,4141.2,2.414759]
[1759138728087,0.0002,4141.3,4141.2,3.103259]
[1759138728292,0.0002,4141.3,4141.2,17.603259]
[1759138729624,0.0002,4141.3,4141.2,18.395259]
[1759138729798,0.001,4142.2,4142.0,2.41429261]
[1759138730000,0.001,4142.2,4142.0,5.69072187]
[1759138730330,1e-08,4142.4,4142.0,6.87093103]
[1759138730493,1e-08,4142.4,4142.3,0.12]
[1759138730701,1e-08,4142.4,4142.3,5.59325893]
[1759138730907,1e-08,4142.4,4142.3,7.04961776]
[1759138731128,1e-08,4142.4,4142.3,22.81074024]
[1759138733508,1e-08,4142.4,4142.3,22.01874024]
[1759138736224,1e-08,4142.4,4142.3,22.81074024]
[1759138736921,0.00020001,4142.5,4142.4,2.41405948]
[1759138737117,0.00020001,4142.5,4142.4,3.91870007]
[1759138737320,0.00020001,4142.5,4142.4,5.1135941]
[1759138737524,0.00020001,4142.5,4142.4,19.58945351]
[1759138740236,0.2459,4144.6,4144.5,2.41283628]
[1759138740469,0.6958,4144.6,4144.5,2.53283628]
[1759138740846,0.6958,4144.6,4144.5,17.03283628]
[1759138741551,5.14417169,4145.9,4144.5,20.06683628]
[1759138741747,0.2459,4144.9,4144.8,2.41266164]
[1759138741970,0.6958,4144.9,4144.8,2.41266164]
[1759138742163,0.6958,4144.9,4144.8,2.53266164]
[1759138744161,0.6968,4144.9,4144.8,2.53266164]
[1759138745567,0.6968,4144.9,4144.8,17.03266164]
[1759138746589,0.6968,4144.9,4144.8,20.06566164]
[1759138746880,0.2469,4144.9,4144.8,20.06566164]
[1759138748787,0.001,4144.9,4144.8,22.31350561]
[1759138748990,0.001,4144.9,4144.8,22.99690561]
[1759138750654,0.6605,4144.9,4144.8,19.28050561]
[1759138750876,0.6605,4144.9,4144.8,20.06566164]
[1759138751079,0.2307,4144.9,4144.8,20.06566164]
[1759138751388,0.001,4144.9,4144.8,20.06566164]
[1759138754900,0.001,4144.9,4144.8,20.77206164]
[1759138756206,0.001,4144.9,4144.8,20.30766164]
[1759138756509,0.001,4144.9,4144.8,22.57970197]
[1759138757882,0.001,4144.9,4144.8,23.04410197]
[1759138761823,0.0002,4144.9,4144.8,19.54670197]
[1759138762033,0.0002,4144.9,4144.8,23.04310197]
[1759138764490,0.0002,4144.9,4144.8,22.57870197]
[1759138764695,0.0002,4144.9,4144.8,23.04310197]
[1759138770852,0.0002,4144.9,4144.8,23.83510197]
[1759138771952,0.2436,4147.6,4147.5,2.41109101]